[Event "Betsys MČR v online bleskovém šachu 2021"]
[Site "Chess.com"]
[Date "2021.04.17"]
[Round "4"]
[White "SanyH"]
[Black "WhiteLittleHorse"]
[Result "1-0"]
[WhiteElo "1595"]
[BlackElo "961"]
[TimeControl "180+1"]
[EndTime "9:36:32 PDT"]
[Termination "Uživatel SanyH zvítězil na čas"]

1. e4 {[%clk 0:03:00.9]} 1... e5 {[%clk 0:02:58.4]} 2. f4 {[%clk 0:03:00.7]}
2... exf4 {[%clk 0:02:55.3]} 3. Nf3 {[%clk 0:03:00.8]} 3... d5 {[%clk
0:02:50.5]} 4. exd5 {[%clk 0:02:58.7]} 4... Qxd5 {[%clk 0:02:47.9]} 5. Nc3
{[%clk 0:02:58.9]} 5... Qd8 {[%clk 0:02:46.9]} 6. Bc4 {[%clk 0:02:58.2]} 6...
Nf6 {[%clk 0:02:43.8]} 7. O-O {[%clk 0:02:58]} 7... Bd6 {[%clk 0:02:41.6]} 8. d4
{[%clk 0:02:57.2]} 8... Kf8 {[%clk 0:02:40.6]} 9. Ng5 {[%clk 0:02:54.5]} 9...
Be6 {[%clk 0:02:36.7]} 10. Bxe6 {[%clk 0:02:51.7]} 10... Kg8 {[%clk 0:02:30.1]}
11. Bxf7+ {[%clk 0:02:50.2]} 11... Kf8 {[%clk 0:02:27.6]} 12. Bc4 {[%clk
0:02:48.4]} 12... Qd7 {[%clk 0:02:11.9]} 13. Ne6+ {[%clk 0:02:44.8]} 13... Ke8
{[%clk 0:02:04.1]} 14. Qe2 {[%clk 0:02:38.2]} 14... Be7 {[%clk 0:01:57.5]} 15.
Nc5 {[%clk 0:02:29.8]} 15... Qxd4+ {[%clk 0:01:51]} 16. Qf2 {[%clk 0:02:22.3]}
16... Bxc5 {[%clk 0:01:44.6]} 17. Re1+ {[%clk 0:02:18.8]} 17... Kd8 {[%clk
0:01:35]} 18. Rd1 {[%clk 0:02:17.7]} 18... Nc6 {[%clk 0:01:07.1]} 19. Rxd4+
{[%clk 0:02:16.1]} 19... Bxd4 {[%clk 0:01:06.3]} 20. Bxf4 {[%clk 0:01:54.2]}
20... Bxf2+ {[%clk 0:01:04.3]} 21. Kxf2 {[%clk 0:01:54.9]} 21... Rf8 {[%clk
0:00:59.2]} 22. Rd1+ {[%clk 0:01:54]} 22... Ke7 {[%clk 0:00:55.6]} 23. Kg1
{[%clk 0:01:44.1]} 23... Rad8 {[%clk 0:00:51.2]} 24. Re1+ {[%clk 0:01:40.8]}
24... Kd7 {[%clk 0:00:47.7]} 25. Be6+ {[%clk 0:01:39.1]} 25... Ke8 {[%clk
0:00:43.6]} 26. Bc4+ {[%clk 0:01:23.4]} 26... Ne7 {[%clk 0:00:35.3]} 27. Bxc7
{[%clk 0:01:19.4]} 27... Rc8 {[%clk 0:00:28.9]} 28. Bb5+ {[%clk 0:01:16.9]}
28... Kf7 {[%clk 0:00:25.6]} 29. Bd6 {[%clk 0:01:14.8]} 29... Ng6 {[%clk
0:00:18.6]} 30. Bxf8 {[%clk 0:01:11.3]} 30... Kxf8 {[%clk 0:00:16.5]} 31. Rf1
{[%clk 0:01:10.3]} 31... Kf7 {[%clk 0:00:15.1]} 32. Ba4 {[%clk 0:01:05]} 32...
b6 {[%clk 0:00:14.1]} 33. Bb3+ {[%clk 0:01:04.3]} 33... Kf8 {[%clk 0:00:11.6]}
34. Nd5 {[%clk 0:01:03.5]} 34... Kf7 {[%clk 0:00:07]} 35. g4 {[%clk 0:01:02]}
35... Ke6 {[%clk 0:00:02.4]} 36. Nxb6+ {[%clk 0:00:59.8]} 1-0

[Event "Betsys MČR v online bleskovém šachu 2021"]
[Site "Chess.com"]
[Date "2021.04.17"]
[Round "4"]
[White "NeumanPetr"]
[Black "koky_3"]
[Result "1-0"]
[WhiteElo "2492"]
[BlackElo "2049"]
[TimeControl "180+1"]
[EndTime "9:36:33 PDT"]
[Termination "Uživatel NeumanPetr zvítězil po vzdání soupeře"]

1. e4 {[%clk 0:03:00.9]} 1... c5 {[%clk 0:02:57.4]} 2. Nc3 {[%clk 0:03:00.1]}
2... e6 {[%clk 0:02:56.5]} 3. g3 {[%clk 0:02:57.5]} 3... Nc6 {[%clk 0:02:56.4]}
4. Bg2 {[%clk 0:02:56.4]} 4... h5 {[%clk 0:02:55.3]} 5. h3 {[%clk 0:02:54.9]}
5... Nf6 {[%clk 0:02:51.1]} 6. d3 {[%clk 0:02:54.9]} 6... g6 {[%clk 0:02:46.9]}
7. Bg5 {[%clk 0:02:51.1]} 7... Be7 {[%clk 0:02:38.5]} 8. Qd2 {[%clk 0:02:50.2]}
8... Nd4 {[%clk 0:02:37.1]} 9. Nd1 {[%clk 0:02:47.9]} 9... d6 {[%clk 0:02:35.8]}
10. c3 {[%clk 0:02:47.9]} 10... Nc6 {[%clk 0:02:35.4]} 11. Ne2 {[%clk
0:02:47.9]} 11... Bd7 {[%clk 0:02:32.5]} 12. Be3 {[%clk 0:02:45.6]} 12... Qa5
{[%clk 0:02:26.4]} 13. f4 {[%clk 0:02:41.1]} 13... e5 {[%clk 0:02:10.9]} 14. O-O
{[%clk 0:02:37.3]} 14... O-O-O {[%clk 0:02:09.4]} 15. Nf2 {[%clk 0:02:35.2]}
15... Kb8 {[%clk 0:02:08.6]} 16. a3 {[%clk 0:02:35.5]} 16... Be6 {[%clk
0:01:43]} 17. b4 {[%clk 0:02:35.1]} 17... Qc7 {[%clk 0:01:27]} 18. d4 {[%clk
0:02:33]} 18... cxd4 {[%clk 0:01:24]} 19. cxd4 {[%clk 0:02:32.6]} 19... exd4
{[%clk 0:01:22.1]} 20. Nxd4 {[%clk 0:02:32.3]} 20... d5 {[%clk 0:00:27.7]} 21.
e5 {[%clk 0:02:16.3]} 21... Ne4 {[%clk 0:00:26.6]} 22. Nxe4 {[%clk 0:02:06.2]}
22... dxe4 {[%clk 0:00:26.2]} 23. Nxe6 {[%clk 0:02:05.7]} 23... fxe6 {[%clk
0:00:23.4]} 24. Qa2 {[%clk 0:01:59.7]} 24... Nd4 {[%clk 0:00:21.1]} 25. Rac1
{[%clk 0:01:43.8]} 25... Qd7 {[%clk 0:00:19.8]} 26. Bxe4 {[%clk 0:01:39.8]}
26... Qb5 {[%clk 0:00:16.7]} 27. Rfe1 {[%clk 0:01:30.4]} 27... Rhf8 {[%clk
0:00:14.2]} 28. a4 {[%clk 0:01:26.1]} 28... Qa6 {[%clk 0:00:10.8]} 29. b5 {[%clk
0:01:22.3]} 29... Qa5 {[%clk 0:00:09]} 30. Red1 {[%clk 0:01:17.7]} 30... Nf5
{[%clk 0:00:08.5]} 31. Bf2 {[%clk 0:01:10.3]} 31... Rxd1+ {[%clk 0:00:07.1]} 32.
Rxd1 {[%clk 0:01:09.9]} 32... Rd8 {[%clk 0:00:07.2]} 33. Rxd8+ {[%clk
0:01:04.2]} 33... Bxd8 {[%clk 0:00:07.3]} 34. Qxe6 {[%clk 0:01:00.1]} 34... Qxa4
{[%clk 0:00:07.2]} 35. Qd7 {[%clk 0:00:55.7]} 35... Qd1+ {[%clk 0:00:05.3]} 36.
Qxd1 {[%clk 0:00:52.2]} 1-0

[Event "Betsys MČR v online bleskovém šachu 2021"]
[Site "Chess.com"]
[Date "2021.04.17"]
[Round "4"]
[White "Asmodai5"]
[Black "Tassa15"]
[Result "0-1"]
[WhiteElo "840"]
[BlackElo "858"]
[TimeControl "180+1"]
[EndTime "9:36:34 PDT"]
[Termination "Uživatel Tassa15 zvítězil na čas"]

1. e4 {[%clk 0:03:00]} 1... d5 {[%clk 0:02:59.5]} 2. exd5 {[%clk 0:02:55.1]}
2... Qxd5 {[%clk 0:02:58.9]} 3. Nc3 {[%clk 0:02:48.8]} 3... Qd6 {[%clk
0:02:58.3]} 4. Nf3 {[%clk 0:02:44.1]} 4... c6 {[%clk 0:02:57.6]} 5. Bc4 {[%clk
0:02:30.7]} 5... Nf6 {[%clk 0:02:56]} 6. d3 {[%clk 0:02:29.8]} 6... Bg4 {[%clk
0:02:54.9]} 7. O-O {[%clk 0:02:18.3]} 7... e6 {[%clk 0:02:54.5]} 8. Bg5 {[%clk
0:02:12.6]} 8... Nbd7 {[%clk 0:02:52.2]} 9. Ne4 {[%clk 0:02:04.8]} 9... Nxe4
{[%clk 0:02:47.4]} 10. dxe4 {[%clk 0:02:00.8]} 10... Qc7 {[%clk 0:02:39]} 11. h3
{[%clk 0:01:34.6]} 11... Bh5 {[%clk 0:02:35.2]} 12. Qd3 {[%clk 0:01:27.3]} 12...
h6 {[%clk 0:02:30.1]} 13. Bd2 {[%clk 0:01:19.6]} 13... Bd6 {[%clk 0:02:23.3]}
14. g3 {[%clk 0:01:06.6]} 14... O-O {[%clk 0:02:10.1]} 15. Bc3 {[%clk
0:00:48.3]} 15... Bxf3 {[%clk 0:02:06.4]} 16. Qxf3 {[%clk 0:00:47]} 16... Ne5
{[%clk 0:02:03.8]} 17. Qd3 {[%clk 0:00:40.3]} 17... Nxc4 {[%clk 0:02:01.6]} 18.
Qxc4 {[%clk 0:00:36.4]} 18... Be5 {[%clk 0:02:00.8]} 19. Bxe5 {[%clk 0:00:34.7]}
19... Qxe5 {[%clk 0:01:59.8]} 20. f4 {[%clk 0:00:33.1]} 20... Qxb2 {[%clk
0:01:54.4]} 21. Rab1 {[%clk 0:00:30.9]} 21... Qa3 {[%clk 0:01:32.3]} 22. Rb3
{[%clk 0:00:27.7]} 22... Qxa2 {[%clk 0:01:24.3]} 23. Rxb7 {[%clk 0:00:26.3]}
23... Qxc4 {[%clk 0:01:22.6]} 24. Rc1 {[%clk 0:00:19.9]} 24... Qd4+ {[%clk
0:01:18.8]} 25. Kg2 {[%clk 0:00:19.4]} 25... Qxe4+ {[%clk 0:01:18.2]} 26. Kf2
{[%clk 0:00:17.7]} 26... Qd4+ {[%clk 0:01:16.8]} 27. Kg2 {[%clk 0:00:17.4]}
27... Rfb8 {[%clk 0:01:11.4]} 28. Re7 {[%clk 0:00:13.7]} 28... Qe3 {[%clk
0:01:07.2]} 29. Rf1 {[%clk 0:00:08.5]} 29... Qe2+ {[%clk 0:01:03.4]} 30. Rf2
{[%clk 0:00:07.7]} 30... Qe4+ {[%clk 0:01:01.2]} 31. Kg1 {[%clk 0:00:05.7]}
31... Qc4 {[%clk 0:00:55.8]} 32. Rd7 {[%clk 0:00:04.2]} 32... Qc5 {[%clk
0:00:52.5]} 33. Rd2 {[%clk 0:00:02.8]} 33... Rd8 {[%clk 0:00:50.5]} 0-1

[Event "Betsys MČR v online bleskovém šachu 2021"]
[Site "Chess.com"]
[Date "2021.04.17"]
[Round "4"]
[White "JIDEMONI"]
[Black "Zavurka1975"]
[Result "0-1"]
[WhiteElo "1900"]
[BlackElo "2212"]
[TimeControl "180+1"]
[EndTime "9:36:35 PDT"]
[Termination "Uživatel Zavurka1975 zvítězil po vzdání soupeře"]

1. d4 {[%clk 0:03:00.9]} 1... Nf6 {[%clk 0:02:59.2]} 2. Nf3 {[%clk 0:03:00.8]}
2... d6 {[%clk 0:02:59]} 3. Nc3 {[%clk 0:02:58.7]} 3... Nbd7 {[%clk 0:02:59.5]}
4. e4 {[%clk 0:02:58.3]} 4... e5 {[%clk 0:02:59.6]} 5. Be2 {[%clk 0:02:53.2]}
5... Be7 {[%clk 0:02:59.6]} 6. O-O {[%clk 0:02:53]} 6... O-O {[%clk 0:02:59.4]}
7. Bg5 {[%clk 0:02:50.7]} 7... c6 {[%clk 0:02:59.1]} 8. dxe5 {[%clk 0:02:46.8]}
8... dxe5 {[%clk 0:02:58.6]} 9. Qd2 {[%clk 0:02:42.3]} 9... Qc7 {[%clk
0:02:58.5]} 10. Rad1 {[%clk 0:02:40]} 10... a5 {[%clk 0:02:58.3]} 11. a4 {[%clk
0:02:38.9]} 11... Nc5 {[%clk 0:02:58.1]} 12. Bxf6 {[%clk 0:02:33.3]} 12... Bxf6
{[%clk 0:02:57.5]} 13. h3 {[%clk 0:02:29.5]} 13... Be6 {[%clk 0:02:53.6]} 14.
Qe3 {[%clk 0:02:26.8]} 14... Be7 {[%clk 0:02:45.3]} 15. g4 {[%clk 0:02:24.5]}
15... Rad8 {[%clk 0:02:33]} 16. Rxd8 {[%clk 0:02:20.9]} 16... Rxd8 {[%clk
0:02:32.6]} 17. Rd1 {[%clk 0:02:21.5]} 17... f6 {[%clk 0:02:31.7]} 18. Nh4
{[%clk 0:02:17.3]} 18... g6 {[%clk 0:02:22.3]} 19. Ng2 {[%clk 0:02:13.3]} 19...
Rxd1+ {[%clk 0:02:16]} 20. Bxd1 {[%clk 0:02:06.5]} 20... Qb6 {[%clk 0:02:11.8]}
21. b3 {[%clk 0:02:02.5]} 21... Qb4 {[%clk 0:02:04.6]} 22. Bf3 {[%clk
0:01:52.7]} 22... Bf7 {[%clk 0:02:00.7]} 23. Ne2 {[%clk 0:01:45.1]} 23... Ne6
{[%clk 0:01:56.4]} 24. Ng3 {[%clk 0:01:43.3]} 24... Bc5 {[%clk 0:01:55.2]} 25.
Qd3 {[%clk 0:01:36.5]} 25... Bd4 {[%clk 0:01:46.2]} 26. Ne2 {[%clk 0:01:27.5]}
26... Qc5 {[%clk 0:01:25.9]} 27. Ne3 {[%clk 0:01:22.5]} 27... Kg7 {[%clk
0:01:10.3]} 28. Nxd4 {[%clk 0:01:20.6]} 28... Qxd4 {[%clk 0:01:08]} 29. Qxd4
{[%clk 0:01:17.6]} 29... Nxd4 {[%clk 0:01:05.2]} 30. Bd1 {[%clk 0:01:17.5]}
30... Kf8 {[%clk 0:01:02.5]} 31. Kg2 {[%clk 0:01:12.4]} 31... Ke7 {[%clk
0:01:02.4]} 32. Kg3 {[%clk 0:01:12.3]} 32... Kd6 {[%clk 0:01:00.7]} 33. f4
{[%clk 0:01:12.2]} 33... Kc5 {[%clk 0:00:59.3]} 34. fxe5 {[%clk 0:01:10.7]}
34... fxe5 {[%clk 0:00:59.2]} 35. g5 {[%clk 0:01:09.6]} 35... Be6 {[%clk
0:00:53.2]} 36. c3 {[%clk 0:01:07.5]} 36... Nxb3 {[%clk 0:00:51.6]} 37. Bxb3
{[%clk 0:01:02.3]} 37... Bxb3 {[%clk 0:00:50.7]} 38. Ng4 {[%clk 0:01:02.5]}
38... Bxa4 {[%clk 0:00:48.2]} 39. Nf6 {[%clk 0:00:54.2]} 39... Bc2 {[%clk
0:00:46.5]} 40. Kf3 {[%clk 0:00:51.1]} 40... a4 {[%clk 0:00:46.2]} 41. Nd7+
{[%clk 0:00:50.8]} 41... Kd6 {[%clk 0:00:35.7]} 42. Nb6 {[%clk 0:00:48.7]} 42...
Bb3 {[%clk 0:00:35.6]} 0-1

[Event "Betsys MČR v online bleskovém šachu 2021"]
[Site "Chess.com"]
[Date "2021.04.17"]
[Round "4"]
[White "Kijonker"]
[Black "ikovacs"]
[Result "1-0"]
[WhiteElo "1518"]
[BlackElo "1046"]
[TimeControl "180+1"]
[EndTime "9:36:35 PDT"]
[Termination "Uživatel Kijonker zvítězil na čas"]

1. e4 {[%clk 0:02:58.6]} 1... e5 {[%clk 0:02:59.3]} 2. Nf3 {[%clk 0:02:58]} 2...
d6 {[%clk 0:02:59.3]} 3. Bc4 {[%clk 0:02:56.8]} 3... Nc6 {[%clk 0:02:58]} 4. d4
{[%clk 0:02:52.8]} 4... Bg4 {[%clk 0:02:43.9]} 5. h3 {[%clk 0:02:52.4]} 5...
Bxf3 {[%clk 0:02:41.5]} 6. Qxf3 {[%clk 0:02:49.5]} 6... Qf6 {[%clk 0:02:32.7]}
7. Qxf6 {[%clk 0:02:40.5]} 7... Nxf6 {[%clk 0:02:25.7]} 8. Bb5 {[%clk 0:02:40]}
8... O-O-O {[%clk 0:02:06]} 9. d5 {[%clk 0:02:38]} 9... Nd4 {[%clk 0:02:03.6]}
10. Bd3 {[%clk 0:02:33.9]} 10... g6 {[%clk 0:01:58.9]} 11. Nc3 {[%clk
0:02:32.4]} 11... h5 {[%clk 0:01:45.5]} 12. Bg5 {[%clk 0:02:25]} 12... Be7
{[%clk 0:01:41]} 13. Be3 {[%clk 0:02:16.5]} 13... a6 {[%clk 0:01:34.3]} 14. Bxd4
{[%clk 0:02:10.2]} 14... exd4 {[%clk 0:01:21.6]} 15. Ne2 {[%clk 0:02:09.4]}
15... c5 {[%clk 0:01:16.8]} 16. dxc6 {[%clk 0:02:07.2]} 16... bxc6 {[%clk
0:01:10.2]} 17. Nxd4 {[%clk 0:02:06.3]} 17... c5 {[%clk 0:01:10.1]} 18. Nc6
{[%clk 0:02:01]} 18... Rd7 {[%clk 0:01:10]} 19. Nxe7+ {[%clk 0:01:51.6]} 19...
Rxe7 {[%clk 0:01:08.3]} 20. f3 {[%clk 0:01:51.7]} 20... Kc7 {[%clk 0:01:07.1]}
21. Bxa6 {[%clk 0:01:49.5]} 21... Ra8 {[%clk 0:01:04.9]} 22. Bd3 {[%clk
0:01:46.4]} 22... Nd7 {[%clk 0:01:01.7]} 23. O-O {[%clk 0:01:45.6]} 23... Ne5
{[%clk 0:00:59.7]} 24. Rfd1 {[%clk 0:01:40.6]} 24... c4 {[%clk 0:00:53]} 25. Bf1
{[%clk 0:01:38.8]} 25... Kc6 {[%clk 0:00:42.5]} 26. a4 {[%clk 0:01:35.5]} 26...
Rb7 {[%clk 0:00:40.1]} 27. Rd4 {[%clk 0:01:22.9]} 27... Kc5 {[%clk 0:00:38]} 28.
Rd5+ {[%clk 0:01:20.2]} 28... Kc6 {[%clk 0:00:35.9]} 29. b3 {[%clk 0:01:15.1]}
29... cxb3 {[%clk 0:00:33.6]} 30. Bb5+ {[%clk 0:01:13.9]} 30... Kc7 {[%clk
0:00:32.1]} 31. cxb3 {[%clk 0:01:13.1]} 31... Nc6 {[%clk 0:00:19.1]} 32. Rc1
{[%clk 0:01:10.6]} 32... Rb6 {[%clk 0:00:15.6]} 33. e5 {[%clk 0:00:59]} 33...
dxe5 {[%clk 0:00:12]} 34. Rdc5 {[%clk 0:00:58.7]} 34... Ra5 {[%clk 0:00:06]} 35.
Rxc6+ {[%clk 0:00:57.1]} 35... Rxc6 {[%clk 0:00:04.5]} 36. Bxc6 {[%clk
0:00:56.8]} 36... Kd6 {[%clk 0:00:02]} 37. Bb5 {[%clk 0:00:56.2]} 1-0

[Event "Betsys MČR v online bleskovém šachu 2021"]
[Site "Chess.com"]
[Date "2021.04.17"]
[Round "4"]
[White "Svisthorsky"]
[Black "Mimochodem"]
[Result "0-1"]
[WhiteElo "1473"]
[BlackElo "1789"]
[TimeControl "180+1"]
[EndTime "9:36:36 PDT"]
[Termination "Uživatel Mimochodem zvítězil po vzdání soupeře"]

1. d4 {[%clk 0:03:00.9]} 1... d5 {[%clk 0:02:59.2]} 2. c4 {[%clk 0:03:00.9]}
2... c5 {[%clk 0:02:59.8]} 3. e3 {[%clk 0:02:57.7]} 3... e6 {[%clk 0:02:59.5]}
4. Nc3 {[%clk 0:02:57.4]} 4... Nf6 {[%clk 0:02:59.9]} 5. Nf3 {[%clk 0:02:57]}
5... b6 {[%clk 0:02:59.8]} 6. Bd2 {[%clk 0:02:54.6]} 6... Bb7 {[%clk 0:03:00.2]}
7. cxd5 {[%clk 0:02:54]} 7... Nxd5 {[%clk 0:02:57.8]} 8. Bc4 {[%clk 0:02:49.5]}
8... Be7 {[%clk 0:02:55.3]} 9. O-O {[%clk 0:02:48.6]} 9... O-O {[%clk
0:02:53.6]} 10. e4 {[%clk 0:02:43.7]} 10... Nxc3 {[%clk 0:02:51.6]} 11. Bxc3
{[%clk 0:02:39.1]} 11... Bxe4 {[%clk 0:02:50.4]} 12. Qe2 {[%clk 0:02:36.1]}
12... Bb7 {[%clk 0:02:45.1]} 13. dxc5 {[%clk 0:02:34.1]} 13... Bxc5 {[%clk
0:02:39.3]} 14. Qe5 {[%clk 0:02:29.5]} 14... f6 {[%clk 0:02:23.5]} 15. Qxe6+
{[%clk 0:02:24.5]} 15... Kh8 {[%clk 0:02:24.1]} 16. Rad1 {[%clk 0:02:04.1]}
16... Qe8 {[%clk 0:02:19.1]} 17. Qh3 {[%clk 0:01:47.5]} 17... Nc6 {[%clk
0:02:01.1]} 18. Rfe1 {[%clk 0:01:37.2]} 18... Qg6 {[%clk 0:01:51.2]} 19. Bd3
{[%clk 0:01:27.9]} 19... Qh6 {[%clk 0:01:46.5]} 20. Qd7 {[%clk 0:01:26.4]} 20...
Na5 {[%clk 0:01:14.3]} 21. Bxa5 {[%clk 0:01:22.5]} 21... Bxf3 {[%clk 0:01:11.6]}
22. Bd2 {[%clk 0:01:10.4]} 22... Qh4 {[%clk 0:01:05.6]} 23. Qf5 {[%clk 0:00:44]}
23... Bxd1 {[%clk 0:01:01.3]} 24. Rxd1 {[%clk 0:00:21.2]} 24... Rad8 {[%clk
0:00:58.8]} 25. Be4 {[%clk 0:00:20.1]} 25... Bb4 {[%clk 0:00:49]} 26. g3 {[%clk
0:00:12.5]} 26... g6 {[%clk 0:00:39.9]} 27. Qb5 {[%clk 0:00:05.4]} 27... Bxd2
{[%clk 0:00:33.1]} 0-1

[Event "Betsys MČR v online bleskovém šachu 2021"]
[Site "Chess.com"]
[Date "2021.04.17"]
[Round "4"]
[White "petiva3"]
[Black "pohoda1966"]
[Result "0-1"]
[WhiteElo "1341"]
[BlackElo "1720"]
[TimeControl "180+1"]
[EndTime "9:36:38 PDT"]
[Termination "Uživatel pohoda1966 zvítězil po vzdání soupeře"]

1. e4 {[%clk 0:03:00.9]} 1... e5 {[%clk 0:02:59.3]} 2. Nf3 {[%clk 0:03:00.9]}
2... Nc6 {[%clk 0:02:58.2]} 3. d4 {[%clk 0:02:59.5]} 3... exd4 {[%clk
0:02:57.6]} 4. Nxd4 {[%clk 0:02:59.7]} 4... d6 {[%clk 0:02:57.4]} 5. Bb5 {[%clk
0:02:56]} 5... Bd7 {[%clk 0:02:56.4]} 6. Nxc6 {[%clk 0:02:53.9]} 6... bxc6
{[%clk 0:02:55.7]} 7. Bc4 {[%clk 0:02:51]} 7... g6 {[%clk 0:02:55.3]} 8. O-O
{[%clk 0:02:49.8]} 8... Bg7 {[%clk 0:02:55.1]} 9. Be3 {[%clk 0:02:31.3]} 9...
Nf6 {[%clk 0:02:51.8]} 10. Nc3 {[%clk 0:02:22.9]} 10... O-O {[%clk 0:02:48.8]}
11. Qe2 {[%clk 0:02:20.1]} 11... Re8 {[%clk 0:02:34.5]} 12. Bg5 {[%clk
0:02:07.9]} 12... Qb8 {[%clk 0:02:25.7]} 13. Rab1 {[%clk 0:01:53.8]} 13... Nxe4
{[%clk 0:02:17.6]} 14. Nxe4 {[%clk 0:01:28.7]} 14... d5 {[%clk 0:02:09.1]} 15.
Qd3 {[%clk 0:01:24.7]} 15... Rxe4 {[%clk 0:02:05.6]} 16. Bb3 {[%clk 0:01:20.3]}
16... Bf5 {[%clk 0:01:58.5]} 17. Qf3 {[%clk 0:01:11.8]} 17... Qe8 {[%clk
0:01:51.2]} 18. Bf4 {[%clk 0:01:03.9]} 18... Be5 {[%clk 0:01:43.6]} 19. Bxe5
{[%clk 0:01:02.4]} 19... Qxe5 {[%clk 0:01:43]} 20. Ba4 {[%clk 0:00:53.6]} 20...
Rxa4 {[%clk 0:01:38.6]} 21. Rfe1 {[%clk 0:00:49]} 21... Qd6 {[%clk 0:01:32.5]}
22. Qb3 {[%clk 0:00:42.4]} 22... Rg4 {[%clk 0:01:24.6]} 23. Re3 {[%clk
0:00:27.4]} 23... d4 {[%clk 0:01:15.6]} 24. Rf3 {[%clk 0:00:23.6]} 24... Be6
{[%clk 0:01:12.7]} 25. Qd3 {[%clk 0:00:19.3]} 25... Re8 {[%clk 0:01:04.7]} 26.
Re1 {[%clk 0:00:17.7]} 26... Kg7 {[%clk 0:00:55.6]} 27. Qd2 {[%clk 0:00:15]}
27... Qd7 {[%clk 0:00:50.6]} 28. b3 {[%clk 0:00:13.3]} 28... h6 {[%clk
0:00:41.5]} 29. h3 {[%clk 0:00:12.5]} 29... Rg5 {[%clk 0:00:40.9]} 30. Qd3
{[%clk 0:00:07.5]} 30... Bf5 {[%clk 0:00:39.4]} 31. Qc4 {[%clk 0:00:04.9]} 31...
Rxe1+ {[%clk 0:00:38.2]} 32. Kh2 {[%clk 0:00:04.4]} 0-1

[Event "Betsys MČR v online bleskovém šachu 2021"]
[Site "Chess.com"]
[Date "2021.04.17"]
[Round "4"]
[White "Bagr92"]
[Black "Gicko13"]
[Result "0-1"]
[WhiteElo "1582"]
[BlackElo "2042"]
[TimeControl "180+1"]
[EndTime "9:36:39 PDT"]
[Termination "Uživatel Gicko13 zvítězil matem"]

1. e4 {[%clk 0:03:00.9]} 1... c5 {[%clk 0:02:59.5]} 2. Nf3 {[%clk 0:03:00.4]}
2... d6 {[%clk 0:02:59.7]} 3. d4 {[%clk 0:03:01.3]} 3... cxd4 {[%clk 0:03:00.4]}
4. Nxd4 {[%clk 0:03:02.2]} 4... Nf6 {[%clk 0:02:59.8]} 5. Nc3 {[%clk 0:03:02.7]}
5... g6 {[%clk 0:03:00.6]} 6. Be3 {[%clk 0:03:02.6]} 6... Bg7 {[%clk 0:03:00.9]}
7. Be2 {[%clk 0:03:03.3]} 7... O-O {[%clk 0:02:59.8]} 8. f4 {[%clk 0:03:03.9]}
8... Nc6 {[%clk 0:02:55.6]} 9. O-O {[%clk 0:03:01.8]} 9... Rb8 {[%clk
0:02:31.8]} 10. Bf3 {[%clk 0:03:00.8]} 10... Bd7 {[%clk 0:02:18.2]} 11. Qe1
{[%clk 0:02:35.8]} 11... Bg4 {[%clk 0:01:54.8]} 12. h3 {[%clk 0:02:28.3]} 12...
Bxf3 {[%clk 0:01:52.6]} 13. Nxf3 {[%clk 0:02:29.2]} 13... b5 {[%clk 0:01:49.6]}
14. Rb1 {[%clk 0:02:24.4]} 14... b4 {[%clk 0:01:48.7]} 15. Nd5 {[%clk
0:02:24.4]} 15... Nxd5 {[%clk 0:01:38.7]} 16. exd5 {[%clk 0:02:25.3]} 16... Na5
{[%clk 0:01:35.3]} 17. Qd2 {[%clk 0:02:12.8]} 17... Nc4 {[%clk 0:01:32.7]} 18.
Qd3 {[%clk 0:02:10.6]} 18... Nxb2 {[%clk 0:01:26.3]} 19. Qe4 {[%clk 0:02:06.6]}
19... Na4 {[%clk 0:01:24.2]} 20. f5 {[%clk 0:01:56.4]} 20... Nc3 {[%clk
0:01:23.6]} 21. Qg4 {[%clk 0:01:52.8]} 21... Nxb1 {[%clk 0:01:23.2]} 22. Rxb1
{[%clk 0:01:53.7]} 22... Rb5 {[%clk 0:01:22.9]} 23. Ng5 {[%clk 0:01:37.1]} 23...
h6 {[%clk 0:01:17.4]} 24. Nf3 {[%clk 0:01:34.6]} 24... Rxd5 {[%clk 0:01:16.7]}
25. fxg6 {[%clk 0:01:33.3]} 25... fxg6 {[%clk 0:01:10.5]} 26. Qxg6 {[%clk
0:01:34.2]} 26... Rf6 {[%clk 0:01:06.9]} 27. Qg4 {[%clk 0:01:32]} 27... e6
{[%clk 0:00:53.2]} 28. Rxb4 {[%clk 0:01:20.4]} 28... a5 {[%clk 0:00:52.2]} 29.
Rb7 {[%clk 0:01:19.7]} 29... Qf8 {[%clk 0:00:38.4]} 30. Nd4 {[%clk 0:00:41.9]}
30... Kh8 {[%clk 0:00:23.3]} 31. Nxe6 {[%clk 0:00:36.7]} 31... Rf1+ {[%clk
0:00:23.3]} 32. Kh2 {[%clk 0:00:36.2]} 32... Be5+ {[%clk 0:00:23.8]} 33. g3
{[%clk 0:00:27.2]} 33... Rd2+ {[%clk 0:00:22.8]} 34. Bxd2 {[%clk 0:00:26]} 34...
Qf2# {[%clk 0:00:22.5]} 0-1